[Event "Frauenbundesliga 2021-22"]
[Site "Germany"]
[Date "2022.05.28"]
[Round "10.13"]
[White "Unuk, Laura"]
[Black "Rogule, Laura"]
[Result "0-1"]
[ECO "E41"]
[WhiteElo "2338"]
[BlackElo "2297"]
[Annotator "TA"]
[PlyCount "106"]
[EventDate "2021.11.26"]
[EventType "team-tourn"]
[EventCountry "GER"]
[SourceTitle "playchess.com"]
[Source "ChessBase"]
[SourceQuality "1"]
[WhiteTeam "Harksheide"]
[BlackTeam "Loeberitz"]
[TimeControl "40/5400+30:1800+30"]

{[%evp 11,106,0,26,0,0,0,2,-6,11,0,-2,0,0,-39,-22,-20,-31,-32,-25,-20,-22,-32,-18,-14,-1,-37,-28,-45,-60,-63,0,0,0,-7,0,0,134,149,124,143,132,114,101,63,86,62,102,0,0,-162,-164,-251,-250,-254,-266,-266,-277,-270,-110,-94,-98,-197,-203,-218,-211,-232,-220,-318,-294,-255,-31,-141,-149,-149,-34,-173,-139,-124,-78,-70,-54,-627,-350,-356,-355,-352,-336,-713,-706,-642,-653,-623,-593,-29989,-29990,-29990,-29990]} 1. d4 {[%emt 0:00:04]} Nf6 {[%emt 0:00:06]} 2. c4 {[%emt 0:00:28]} e6 {[%emt 0:00:09]} 3. Nc3 {[%emt 0:00:35]} Bb4 {[%emt 0:00:46]} 4. e3 {[%emt 0:00:36]} c5 {[%emt 0:03:38]} 5. Bd3 {[%emt 0:07:06]} Nc6 {[%emt 0:04:16]} 6. Nge2 {[%emt 0:02:39]} b6 {[%emt 0:09:37]} 7. Bd2 {[%emt 0:08:11] E41: Nimzo-Indian: Rubinstein: 4...c5 5 Bd3, including Hübner Variation.} O-O {[%emt 0:16:00]} 8. O-O {[%emt 0:00:47]} Bb7 {[%emt 0:05:56]} 9. Rc1 {[%emt 0:08:22] The position is equal.} cxd4 {[%emt 0:07:23]} 10. exd4 {[%emt 0:12:52]} d5 {[%emt 0:01:28] [#]} 11. cxd5 $146 {[%emt 0:11:29]} ({Predecessor:} 11. Bg5 dxc4 12. Bxc4 Be7 13. a3 Qd7 14. Qd3 Rfd8 15. Rfd1 Ne8 16. Qg3 Bxg5 17. Qxg5 {½-½ (34) Rantanen,M-Rivera,C Amsterdam 1954}) 11... Nxd5 {[%emt 0:00:51]} 12. Qc2 {[%emt 0:43:21]} Nf6 {[%emt 0:07:23]} 13. Bg5 {[%emt 0:00:00][%cal Od3h7]} h6 {[%emt 0:12:22]} 14. Bxf6 {[%emt 0:00:00]} Qxf6 {[%emt 0:00:02]} 15. d5 {[%emt 0:00:00]} exd5 {[%emt 0:03:43]} 16. Nxd5 {[%emt 0:00:00]} Qg5 {[%emt 0:06:52]} 17. Be4 {[%emt 0:00:00]} Rae8 {[%emt 0:05:44]} 18. f4 {[%emt 0:00:00]} Qd8 {[%emt 0:04:22]} 19. Kh1 {[%emt 0:00:00]} Bc5 {[%emt 0:02:39][%cal Oe8e4]} 20. Rcd1 {[%emt 0:00:00]} Qb8 {[%emt 0:03:17]} (20... Nb4 $15 21. Bh7+ Kh8 22. Nxb4 Qa8) 21. a3 $11 {[%emt 0:00:00]} a5 {[%emt 0:00:25] Prevents b4.} 22. Ng3 {[%emt 0:00:00]} Nd4 {[%emt 0:03:03]} 23. Qc4 {[%emt 0:00:00]} Rxe4 {[%emt 0:01:05]} 24. Nxe4 $16 {[%emt 0:00:00]} Rd8 {[%emt 0:00:28]} 25. Ndc3 {[%emt 0:00:27]} (25. Rxd4 $2 Bxd4 26. Qxd4 Bxd5 $19) (25. Nxc5 Bxd5 26. Qxd4 Bxg2+ 27. Kxg2 Rxd4 28. Rxd4 bxc5 $17) 25... Qa8 {[%emt 0:00:21]} 26. Rfe1 {[%emt 0:00:38]} Ba6 {[%emt 0:00:57]} 27. Qa2 {[%emt 0:00:17]} Bb7 {[%emt 0:00:16]} 28. Rd2 {[%emt 0:02:01]} Bf8 {[%emt 0:00:29]} 29. Qc4 {[%emt 0:01:14]} (29. Qb1 $16) 29... b5 $1 $11 {[%emt 0:00:21][%cal Bb6b5,Bb5b4][%mdl 32]} 30. Qd3 {[%emt 0:01:22]} (30. Nxb5 $2 Nxb5 31. Nf6+ (31. Qxb5 $2 Bxe4 32. Rxd8 Qxd8 $19) (31. Rxd8 $2 Qxd8 32. Nc5 Qh4 $19) 31... gxf6 $19) (30. Qc7 $11) 30... b4 $1 $19 {[%emt 0:00:44]} 31. axb4 {[%emt 0:00:09]} (31. Nb1 $142 Ne6 32. Qe3) 31... axb4 {[%emt 0:00:07]} 32. Nb1 {[%emt 0:00:23]} Ne6 $1 {[%emt 0:00:40][%csl LRd3,LRf4]} 33. Qe3 {[%emt 0:00:26]} Re8 $1 {[%emt 0:00:43] Strongly threatening ...Bxe4.} 34. Rde2 {[%emt 0:02:59]} Kh8 {[%emt 0:00:39]} (34... f5 $19 {has better winning chances.} 35. Nbd2 fxe4 36. Nxe4 Kh8) 35. Qf2 $17 {[%emt 0:00:32]} Rd8 $1 {[%emt 0:00:32][%mdl 1024] Black has strong compensation.} 36. f5 {[%emt 0:00:33]} (36. Qe3 $17 {was necessary.}) 36... Nd4 $19 {[%emt 0:00:27]} 37. Re3 {[%emt 0:00:03] [#]} Rc8 $1 {[%emt 0:00:23]} 38. f6 {[%emt 0:01:00] Hoping for fxg7+.} Nc2 {[%emt 0:00:32]} 39. fxg7+ {[%emt 0:00:14]} (39. Nbd2 {is the only way for White.}) 39... Bxg7 {[%emt 0:00:04]} 40. Nd6 {[%emt 0:00:22] aiming for Re8+.} Nxe1 $2 {[%emt 0:00:59]} (40... Nxe3 $19 41. Nxb7 Qxb7 42. Qxe3 Rc2) 41. Nxc8 {[%emt 0:07:45]} ({White must play} 41. Rxe1 $15 Rf8 42. Rd1) 41... Bxg2+ $17 {[%emt 0:03:34] A strong pair of Bishops.} 42. Kg1 {[%emt 0:00:03] [#] White wants to mate with Re8+.} Qxc8 {[%emt 0:19:51] Black is more active.} (42... Bd4 $1 $17 {( -> ...Bh3)} 43. Qf4 (43. Re8+ $2 Kh7 $19) 43... Qe4 44. Qxh6+ Kg8 45. Qg5+ Kh7 46. Qh5+ Kg8 47. Qg5+ Kh7 48. Qh5+ Kg7 49. Qg5+ Qg6 50. Qxg6+ fxg6) 43. Rxe1 {[%emt 0:03:51]} (43. Qxe1 $15 Bc6 44. Qxb4) 43... Bb7 {[%emt 0:02:39] Threatens to win with ...Qg4+.} 44. Qf4 {[%emt 0:01:40] Inhibits Qg4+.} Qc5+ {[%emt 0:03:05]} (44... Bxb2 $6 45. Qxh6+ Kg8 46. Qg5+ Bg7 47. Nd2 $11) (44... Qc6 $142 {[%csl Gb7][%cal Rc6g2]} 45. Kf2 Bxb2) 45. Kf1 {[%emt 0:00:13] Black must now prevent Qb8+.} Qc6 $40 {[%emt 0:01:41][%csl Gb7][%cal Rc6g2][%mdl 128] Black attacks. Really sharp!} 46. Re3 $2 {[%emt 0:11:08][%mdl 8192]} (46. Ke2 $15) 46... Ba6+ {[%emt 0:00:58]} 47. Kf2 {[%emt 0:02:33]} Qc2+ {[%emt 0:00:08]} ({Inferior is} 47... Bxb2 48. Qxf7 (48. Nd2 b3 $11) 48... Bd4 49. Qf8+ Kh7 50. Qf7+ Kh8 51. Qf8+ Kh7 52. Qf7+ Kh8 $11) 48. Kg3 {[%emt 0:00:02][%cal Ob1d2]} Qxb1 {[%emt 0:00:48]} 49. Qxb4 $2 {[%emt 0:01:24]} (49. Re8+ Kh7 50. Qe4+ Qxe4 51. Rxe4) 49... Qg1+ $19 {[%emt 0:00:48]} 50. Kf3 {[%emt 0:00:32] [#]} Bb7+ $1 {[%emt 0:01:02][%mdl 512]} 51. Ke2 {[%emt 0:00:06]} Qxh2+ {[%emt 0:00:24]} 52. Kd3 {[%emt 0:01:24]} Ba6+ {[%emt 0:00:15]} 53. Ke4 {[%emt 0:02:24]} Qh4+ {[%emt 0:00:10] Weighted Error Value: White=0.63/Black=0.27 (precise)} 0-1

[Event "Frauenbundesliga 2021-22"]
[Site "Germany"]
[Date "2022.05.28"]
[Round "10.15"]
[White "Radikovic, Anamarija"]
[Black "Otikova, Elina"]
[Result "1-0"]
[ECO "C29"]
[WhiteElo "2133"]
[BlackElo "2090"]
[Annotator "TA"]
[PlyCount "103"]
[EventDate "2021.11.26"]
[EventType "team-tourn"]
[EventCountry "GER"]
[SourceTitle "playchess.com"]
[Source "ChessBase"]
[SourceQuality "1"]
[WhiteTeam "Harksheide"]
[BlackTeam "Loeberitz"]
[TimeControl "40/5400+30:1800+30"]

{[%evp 10,103,0,0,0,0,7,8,16,18,56,43,70,16,21,25,38,-26,-13,-8,-11,-51,-4,0,23,26,93,68,112,106,129,135,134,106,134,117,214,220,208,154,360,342,349,171,179,180,177,184,155,147,147,140,138,127,512,501,450,433,688,589,650,616,2282,2212,3446,3165,3321,2334,3261,3204,2631,896,872,0,2697,1726,3152,2764,3124,3124,2198,2156,2208,1962,1538,1585,1400,683,29976,29976,29982,29983,29985,29986,29986,29987]} 1. e4 {[%emt 0:00:02]} e5 {[%emt 0:00:08]} 2. Nc3 {[%emt 0:00:05]} Nf6 {[%emt 0:00:29]} 3. f4 {[%emt 0:00:06]} d5 {[%emt 0:01:21]} 4. fxe5 {[%emt 0:00:08]} Nxe4 {[%emt 0:00:22]} 5. Qf3 {[%emt 0:00:05]} Nxc3 {[%emt 0:01:59]} 6. bxc3 {[%emt 0:00:34]} c5 {[%emt 0:03:25] is now more promising than 6...Be7. C29: Vienna Game: 2...Nf6 3 f4.} 7. Bb5+ {[%emt 0:10:01]} Bd7 {[%emt 0:06:43]} 8. Rb1 {[%emt 0:00:41]} Bxb5 {[%emt 0:07:36] The position is equal.} 9. Rxb5 {[%emt 0:00:08] [#]} b6 $146 {[%emt 0:00:30]} ({Predecessor:} 9... Qd7 10. c4 a6 11. Rb1 Nc6 12. cxd5 Nxe5 13. Qe4 Qe7 14. Nf3 Nxf3+ 15. gxf3 O-O-O 16. Qxe7 Bxe7 {1-0 (47) Seul,G (2372)-Itkis,B (2333) Chess.com INT 2021}) 10. Ne2 {[%emt 0:06:39]} (10. Nh3 $5 {[%cal Re1g1]} Qh4+ 11. Nf2 $16) 10... Be7 {[%emt 0:13:19]} 11. O-O {[%emt 0:22:54]} (11. Nf4 $14) 11... O-O $11 {[%emt 0:00:34]} 12. Nf4 $40 {[%emt 0:20:45][%mdl 128] White is up to no good.} Nc6 {[%emt 0:04:29]} 13. Re1 {[%emt 0:02:00]} (13. d4 $1 $14) 13... Bg5 {[%emt 0:09:18]} 14. d4 {[%emt 0:07:25]} Bxf4 {[%emt 0:06:18]} 15. Qxf4 {[%emt 0:02:12]} a6 {[%emt 0:01:47]} (15... Qd7 $15 16. a4 Nd8) 16. Rb1 {[%emt 0:00:24]} cxd4 {[%emt 0:02:06]} 17. cxd4 {[%emt 0:00:07]} Rc8 {[%emt 0:07:33]} (17... Na5 $11 {keeps the balance.}) 18. Rf1 {[%emt 0:06:53] White is more active.} Ne7 {[%emt 0:01:03]} 19. Rf2 {[%emt 0:02:13]} Rc6 {[%emt 0:07:25]} 20. Ba3 {[%emt 0:02:03]} f6 {[%emt 0:04:56]} 21. Rbf1 {[%emt 0:00:56]} Ng6 {[%emt 0:02:46]} 22. Qg4 {[%emt 0:03:26]} Re8 {[%emt 0:01:03] [#]} (22... Qc8 $16 23. Qh5 Rd8) 23. h4 $1 $18 {[%emt 0:00:51]} ({But not} 23. exf6 $6 gxf6 24. Qg3 Kh8 $16) 23... Qc8 {[%emt 0:03:41]} 24. Qf3 {[%emt 0:01:55]} Nxh4 $2 {[%emt 0:01:08]} (24... Rc3 $16 {was worth a try.} 25. Qxd5+ Qe6 26. Qxe6+ Rxe6) 25. Qxd5+ {[%emt 0:01:44]} Kh8 {[%emt 0:03:04]} 26. exf6 {[%emt 0:01:07]} (26. Qf7 $142 {[%cal Re5f6]} f5 27. Bd6) 26... Rxf6 {[%emt 0:00:53]} 27. Rxf6 {[%emt 0:00:12]} gxf6 {[%emt 0:00:04]} 28. Qf7 {[%emt 0:01:54]} Qe6 {[%emt 0:00:50]} 29. Qxf6+ {[%emt 0:00:35]} Qxf6 {[%emt 0:00:42]} 30. Rxf6 $16 {[%emt 0:00:05][%mdl 4096] Endgame KRB-KRN} Re2 {[%emt 0:01:19]} 31. Rf2 {[%emt 0:00:08]} Rxf2 {[%emt 0:03:24][%mdl 8192] [#]} (31... Re1+ $16 32. Kh2 Ng6) 32. Kxf2 {[%emt 0:00:05] KB-KN} Kg8 {[%emt 0:00:18]} 33. c4 {[%emt 0:01:52]} Kf7 {[%emt 0:00:18]} (33... h5 $142 34. g3 Nf5) 34. g4 $18 {[%emt 0:01:03]} Ke6 {[%emt 0:00:48]} 35. Ke3 {[%emt 0:00:09]} b5 {[%emt 0:02:20]} 36. cxb5 {[%emt 0:04:17]} axb5 {[%emt 0:00:04]} 37. Ke4 {[%emt 0:00:05]} Ng2 {[%emt 0:02:12]} 38. Bb4 {[%emt 0:00:57]} Nh4 {[%emt 0:00:08]} 39. d5+ {[%emt 0:00:44]} Kd7 {[%emt 0:01:55]} 40. Ke5 {[%emt 0:01:06]} (40. Be1 $142 Ng6 41. Bg3) 40... Nf3+ {[%emt 0:01:28]} 41. Ke4 {[%emt 0:05:36]} (41. Kf4 $142 Nh4 42. Ke4) 41... Nh4 $1 {[%emt 0:06:47]} 42. Be1 {[%emt 0:04:14]} Ng6 {[%emt 0:00:36]} 43. Bg3 {[%emt 0:00:36]} Ne7 {[%emt 0:04:28]} 44. Kd4 {[%emt 0:00:46]} Ng8 {[%emt 0:00:19]} 45. Be5 {[%emt 0:03:36]} Nh6 {[%emt 0:02:33]} 46. g5 {[%emt 0:00:09]} Nf5+ {[%emt 0:06:14]} 47. Kc5 {[%emt 0:02:49]} Ne7 {[%emt 0:00:29]} 48. Bf6 {[%emt 0:01:01]} (48. Bg3 $142 Nf5 49. Bf4) 48... Ng8 {[%emt 0:00:14]} 49. Kxb5 {[%emt 0:04:20] White mates.} Kd6 {[%emt 0:07:31]} 50. a4 {[%emt 0:03:02][%cal Ba2a4,Ba4a5][%mdl 32]} Kxd5 {[%emt 0:03:56]} 51. a5 {[%emt 0:00:06]} Kd6 {[%emt 0:00:21]} 52. Kb6 {[%emt 0:02:31] Weighted Error Value: White=0.41/Black=0.72} 1-0

[Event "Frauenbundesliga 2021-22"]
[Site "Germany"]
[Date "2022.05.28"]
[Round "10.16"]
[White "Naumann, Nadine"]
[Black "Adamowicz, Katarzyna"]
[Result "1/2-1/2"]
[ECO "B59"]
[WhiteElo "1951"]
[BlackElo "2108"]
[Annotator "TA"]
[PlyCount "104"]
[EventDate "2021.11.26"]
[EventType "team-tourn"]
[EventCountry "GER"]
[SourceTitle "playchess.com"]
[Source "ChessBase"]
[SourceQuality "1"]
[WhiteTeam "Loeberitz"]
[BlackTeam "Harksheide"]
[TimeControl "40/5400+30:1800+30"]

{[%evp 18,104,11,4,14,-20,16,25,23,6,32,0,13,-39,-43,-45,-42,-20,0,0,-2,0,52,50,50,37,50,49,58,17,19,17,10,16,29,20,20,10,32,23,69,71,61,5,5,0,56,64,54,0,0,0,0,0,0,0,0,0,0,0,0,0,7,0,0,-45,-38,-38,0,-38,-23,-46,-33,-146,0,0,0,0,0,0,0,0,0,0,0,0,0,0,0]} 1. e4 {[%emt 0:00:03]} c5 {[%emt 0:00:07]} 2. Nf3 {[%emt 0:00:14]} d6 {[%emt 0:00:16]} 3. d4 {[%emt 0:00:37]} cxd4 {[%emt 0:00:07]} 4. Nxd4 {[%emt 0:00:07]} Nf6 {[%emt 0:00:41]} 5. Nc3 {[%emt 0:00:46]} Nc6 {[%emt 0:01:32]} 6. Be2 {[%emt 0:03:39]} e5 {[%emt 0:03:31]} 7. Nb3 {[%emt 0:02:43]} Be7 {[%emt 0:00:12]} 8. Be3 {[%emt 0:06:40]} Be6 {[%emt 0:02:51]} 9. O-O {[%emt 0:01:12]} O-O {[%emt 0:00:52]} 10. f3 {[%emt 0:04:01]} a5 {[%emt 0:06:04][%cal Ba7a5,Ba5a4][%mdl 32] B59: Classical Sicilian: 6 Be2 e5 7 Nb3.} 11. Nd5 {[%emt 0:03:57]} Bxd5 {[%emt 0:06:43]} (11... a4 $5 {[%cal Ra4b3]} 12. Nc1 (12. Bb6 Qc8 $11) 12... Bxd5 13. exd5 Nd4 $11) 12. exd5 {[%emt 0:01:06]} Nb4 {[%emt 0:00:05] White has an edge.} 13. c4 {[%emt 0:01:04]} Nd7 {[%emt 0:03:41]} 14. a3 {[%emt 0:02:26]} (14. Qd2 $5 {[%cal Ra2a3]}) 14... Na6 {[%emt 0:00:40] [#]} 15. Qe1 $146 {[%emt 0:02:00]} (15. Nc1 $11) ({Predecessor:} 15. Nd2 Bg5 16. Bf2 Nac5 17. Ne4 Nxe4 18. fxe4 a4 19. Bd3 Qc7 20. Qh5 Bh6 21. Rad1 {1-0 (95) Bocharov,I (2563)-Demchenko,A (2679) Sochi 2018}) 15... a4 $15 {[%emt 0:01:23]} 16. Nd2 {[%emt 0:01:12]} Nac5 {[%emt 0:01:08]} 17. Ne4 {[%emt 0:04:27]} Nxe4 {[%emt 0:09:21]} 18. fxe4 {[%emt 0:00:10]} Bg5 {[%emt 0:00:04]} 19. Bf2 {[%emt 0:01:28]} Nc5 {[%emt 0:04:49]} (19... b6 $11) 20. Bxc5 $14 {[%emt 0:01:04]} dxc5 {[%emt 0:02:35]} 21. Qg3 {[%emt 0:04:17]} Bf4 {[%emt 0:08:45]} 22. Qd3 {[%emt 0:58:17]} Ra6 {[%emt 0:07:45]} 23. Rf3 {[%emt 0:00:00]} Rb6 {[%emt 0:03:25]} 24. Rb1 {[%emt 0:00:00]} Rb3 {[%emt 0:16:37]} 25. Qc2 {[%emt 0:00:00]} Be3+ {[%emt 0:00:05]} 26. Kh1 {[%emt 0:00:00]} Qh4 {[%emt 0:00:08]} 27. g3 {[%emt 0:00:00]} Qg5 {[%emt 0:02:39]} 28. Bd1 {[%emt 0:00:00] [#] Black must now prevent Qe2.} Rb6 {[%emt 0:11:29]} (28... Bd4 $1 $11) 29. Qe2 {[%emt 0:00:00]} Bd4 {[%emt 0:01:24]} 30. Rf5 {[%emt 0:00:00]} ({White should play} 30. Bxa4 $14 Qg4 31. Bb5) 30... Qh6 $11 {[%emt 0:00:45]} 31. Bxa4 {[%emt 0:00:00]} g6 {[%emt 0:01:06]} (31... Bxb2 $1 $11 32. Rff1 (32. d6 Ra8 $11) 32... Bxa3) 32. Rff1 {[%emt 0:00:00]} f5 {[%emt 0:00:26]} 33. b3 {[%emt 0:00:00]} (33. Bd7 $14) 33... fxe4 {[%emt 0:02:46]} 34. Rxf8+ {[%emt 0:00:00]} (34. Qxe4 Rbf6 35. Rxf6 Rxf6 $19) 34... Qxf8 {[%emt 0:00:05]} 35. Rf1 {[%emt 0:00:33]} Rf6 {[%emt 0:00:05]} 36. Rxf6 {[%emt 0:01:28]} Qxf6 {[%emt 0:00:05][%mdl 4096] Endgame KQB-KQB} 37. Kg2 {[%emt 0:00:27] Against Qf3+} Qf5 {[%emt 0:01:52] Inhibits Bd7.} 38. b4 {[%emt 0:01:08]} cxb4 {[%emt 0:01:13]} 39. axb4 {[%emt 0:00:09]} e3 {[%emt 0:00:37]} 40. Bc2 {[%emt 0:01:44]} e4 {[%emt 0:01:22]} 41. b5 {[%emt 0:32:27]} Kg7 {[%emt 0:02:42]} 42. Qf1 $1 {[%emt 0:00:00]} Qe5 {[%emt 0:03:33]} 43. Bd1 {[%emt 0:00:00]} (43. d6 $5) 43... Bb6 {[%emt 0:03:38]} 44. Be2 {[%emt 0:00:00]} h5 {[%emt 0:00:34]} 45. Qf4 {[%emt 0:00:00] [#]} (45. Qe1 $15) 45... Qb2 {[%emt 0:00:32]} (45... Qxf4 $1 $17 46. gxf4 Bc5) 46. Kf1 {[%emt 0:00:00] The position is equal.} Qc1+ {[%emt 0:02:09]} 47. Kg2 {[%emt 0:00:00]} Qd2 {[%emt 0:00:29]} 48. Qe5+ {[%emt 0:00:00]} Kh7 {[%emt 0:00:40]} 49. Qe7+ {[%emt 0:00:00]} Kh6 {[%emt 0:00:24]} 50. Qf8+ {[%emt 0:00:00]} Kh7 {[%emt 0:00:05]} 51. Qf7+ {[%emt 0:00:00]} Kh6 {[%emt 0:00:08]} 52. Qf8+ {[%emt 0:00:00]} Kh7 {[%emt 0:00:06] Weighted Error Value: White=0.17 (very precise) /Black=0.14 (very precise)} 1/2-1/2

[Event "Frauenbundesliga 2021-22"]
[Site "Germany"]
[Date "2022.05.28"]
[Round "10.17"]
[White "Koehler, Inken"]
[Black "Giebel, Christine"]
[Result "1/2-1/2"]
[ECO "E62"]
[WhiteElo "2002"]
[BlackElo "1833"]
[Annotator "TA"]
[PlyCount "61"]
[EventDate "2021.11.26"]
[EventType "team-tourn"]
[EventCountry "GER"]
[SourceTitle "playchess.com"]
[Source "ChessBase"]
[SourceQuality "1"]
[WhiteTeam "Harksheide"]
[BlackTeam "Loeberitz"]
[TimeControl "40/5400+30:1800+30"]

{[%evp 15,61,11,24,16,92,0,12,12,17,15,10,21,10,10,18,22,49,52,47,-6,-14,-5,0,-16,-10,-10,7,0,34,0,0,0,0,0,0,0,0,-5,-5,-5,-5,-13,0,-5,-5,-13,0,0]} 1. c4 {[%emt 0:00:02]} Nf6 {[%emt 0:00:06]} 2. Nc3 {[%emt 0:00:13]} g6 {[%emt 0:00:12]} 3. g3 {[%emt 0:00:23]} Bg7 {[%emt 0:00:18]} 4. Bg2 {[%emt 0:00:14]} d6 {[%emt 0:00:50]} 5. Nf3 {[%emt 0:02:00]} O-O {[%emt 0:00:53]} 6. O-O {[%emt 0:01:06]} c6 {[%emt 0:01:34]} 7. d4 {[%emt 0:02:45]} Bf5 {[%emt 0:04:28]} 8. Re1 {[%emt 0:04:01]} Ne4 {[%emt 0:04:34]} 9. Qb3 $1 {[%emt 0:10:59] 9.Qb3 is better than 9.Nxe4. E62: King's Indian: Fianchetto: 6...c6 and Panno Variation (6...Nc6) without ...a6.} Qb6 {[%emt 0:10:59] [#]} (9... Nxc3 $11 10. bxc3 (10. Qxb7 Qb6 $14) 10... Bc8) 10. Qxb6 {[%emt 0:25:38]} ({Better is} 10. Nh4 $1 $16) 10... axb6 $11 {[%emt 0:00:06]} 11. Nh4 {[%emt 0:00:09]} Nxc3 {[%emt 0:02:48] [#]} 12. Nxf5 $146 {[%emt 0:00:33]} ({Predecessor:} 12. bxc3 Be6 13. Bg5 f6 14. Be3 Bxc4 15. a3 Nd7 16. Bf3 Ra4 17. Ng2 Rfa8 18. Bc1 {0-1 (41) Jagadeesh,B (1712)-Aubury,B (1659) Basingstoke 2019}) 12... gxf5 {[%emt 0:00:44]} 13. bxc3 {[%emt 0:00:09]} Ra4 {[%emt 0:11:17]} 14. e4 {[%emt 0:49:18]} fxe4 {[%emt 0:01:40]} 15. Rxe4 {[%emt 0:00:00]} e5 {[%emt 0:02:34]} 16. dxe5 {[%emt 0:00:00]} dxe5 {[%emt 0:02:53]} 17. Bf3 {[%emt 0:00:00]} ({White should play} 17. c5 $14 Ra5 18. Rg4 (18. cxb6 f5 $14)) 17... Nd7 {[%emt 0:13:20]} 18. Bd1 {[%emt 0:00:00] This bishop pair is nice.} Ra5 {[%emt 0:04:03]} 19. a4 {[%emt 0:00:00]} Nc5 {[%emt 0:06:32]} 20. Re2 {[%emt 0:00:00]} Rd8 {[%emt 0:10:11]} 21. Be3 {[%emt 0:00:00]} Rda8 {[%emt 0:06:34][%cal Rc5a4]} 22. Rb2 {[%emt 0:00:00]} Nxa4 {[%emt 0:06:47] The position is equal.} 23. Bxa4 {[%emt 0:00:00]} Rxa4 {[%emt 0:00:05]} 24. Rxa4 {[%emt 0:00:00]} Rxa4 {[%emt 0:00:07]} 25. Rxb6 {[%emt 0:00:00][%mdl 4096] Endgame KRB-KRB} f5 {[%emt 0:01:20]} 26. Rb4 {[%emt 0:02:01]} Rxb4 {[%emt 0:03:36]} 27. cxb4 {[%emt 0:00:55]} Bf8 {[%emt 0:02:13]} 28. Bd2 {[%emt 0:01:05]} Bd6 {[%emt 0:00:46]} 29. Kg2 {[%emt 0:01:30]} Kf7 {[%emt 0:00:18]} 30. Kf3 {[%emt 0:00:27]} h5 {[%emt 0:00:28]} 31. h3 {[%emt 0:00:33] Weighted Error Value: White=0.15 (very precise) /Black=0.12 (very precise)} 1/2-1/2

[Event "Frauenbundesliga 2021-22"]
[Site "Germany"]
[Date "2022.05.28"]
[Round "10.18"]
[White "Schuster, Rebekka"]
[Black "Rosmait, Emily"]
[Result "0-1"]
[ECO "C54"]
[WhiteElo "1830"]
[BlackElo "1896"]
[Annotator "NA RC COMBH"]
[PlyCount "130"]
[EventDate "2021.11.26"]
[EventType "team-tourn"]
[EventCountry "GER"]
[SourceTitle "playchess.com"]
[Source "ChessBase"]
[SourceQuality "1"]
[WhiteTeam "Loeberitz"]
[BlackTeam "Harksheide"]
[TimeControl "40/5400+30:1800+30"]

1. e4 {[%emt 0:00:02]} e5 {[%emt 0:00:18]} 2. Nf3 {[%emt 0:00:07]} Nc6 {[%emt 0:00:04]} 3. Bc4 {[%emt 0:00:05]} Bc5 {[%emt 0:01:43]} 4. O-O {[%emt 0:04:47]} d6 {[%emt 0:01:12]} 5. c3 {[%emt 0:01:11]} Nf6 {[%emt 0:02:05]} 6. d3 {[%emt 0:00:12]} h6 {[%emt 0:01:23]} 7. b4 {[%emt 0:03:28]} Bb6 {[%emt 0:00:39]} 8. a4 {[%emt 0:00:37]} a5 {[%emt 0:02:58]} 9. b5 {[%emt 0:05:15]} Ne7 {[%emt 0:01:04]} 10. Be3 {[%emt 0:06:11]} Bxe3 {[%emt 0:04:22]} 11. fxe3 {[%emt 0:00:08]} Ng6 {[%emt 0:00:59]} 12. Nbd2 {[%emt 0:02:35]} O-O {[%emt 0:01:25]} 13. Qe1 {[%emt 0:13:11]} Qe7 {[%emt 0:09:04]} 14. Qg3 {[%emt 0:07:03]} Be6 {[%emt 0:01:58]} 15. Bxe6 {[%emt 0:13:28]} Qxe6 {[%emt 0:00:54]} 16. c4 {[%emt 0:01:05]} Nh5 {[%emt 0:15:10]} 17. Qf2 {[%emt 0:00:34]} f5 {[%emt 0:02:45]} 18. exf5 {[%emt 0:03:26]} Qxf5 {[%emt 0:00:13]} 19. Qe2 {[%emt 0:02:01]} Nf6 {[%emt 0:25:51]} 20. Nd4 {[%emt 0:06:41]} Qd7 {[%emt 0:04:25]} 21. Nf5 {[%emt 0:06:25]} d5 {[%emt 0:02:13]} 22. cxd5 {[%emt 0:10:10]} Qxd5 {[%emt 0:00:28]} 23. Rac1 {[%emt 0:01:13]} Rf7 {[%emt 0:00:52]} 24. d4 {[%emt 0:05:38]} exd4 {[%emt 0:02:05]} 25. Nxd4 {[%emt 0:00:30]} Re8 {[%emt 0:02:30]} 26. Qf3 {[%emt 0:02:23]} Qxf3 {[%emt 0:03:52]} 27. Rxf3 {[%emt 0:00:04]} Ne5 {[%emt 0:00:07]} 28. Rf5 {[%emt 0:01:19]} Nd3 {[%emt 0:01:53]} 29. Rc3 {[%emt 0:01:44]} Nb4 {[%emt 0:02:27]} 30. e4 {[%emt 0:01:46]} Rd7 {[%emt 0:03:24]} 31. N4f3 {[%emt 0:00:07]} Nxe4 {[%emt 0:02:43]} 32. Nxe4 {[%emt 0:01:19]} Rxe4 {[%emt 0:00:14]} 33. Re5 {[%emt 0:00:35]} Rf4 {[%emt 0:02:03]} 34. Rec5 {[%emt 0:00:36]} Rd1+ {[%emt 0:01:56]} 35. Kf2 {[%emt 0:00:05]} Nd3+ {[%emt 0:00:41]} 36. Kg3 {[%emt 0:00:52]} Nxc5 {[%emt 0:01:33]} 37. Kxf4 {[%emt 0:00:06]} b6 {[%emt 0:00:25]} 38. Rc4 {[%emt 0:00:22]} Ra1 {[%emt 0:00:48]} 39. Nd4 {[%emt 0:01:44]} Kf7 {[%emt 0:00:36]} 40. Ke5 {[%emt 0:00:27]} Rxa4 {[%emt 0:00:33]} 41. Rxa4 {[%emt 0:30:55]} Nxa4 {[%emt 0:01:37]} 42. Ne6 {[%emt 0:00:00]} Nc5 {[%emt 0:11:15]} 43. Nxc7 {[%emt 0:00:00]} a4 {[%emt 0:02:04]} 44. Nd5 {[%emt 0:00:00]} a3 {[%emt 0:04:02]} 45. Nc3 {[%emt 0:00:00]} g6 {[%emt 0:05:17]} 46. Kd5 {[%emt 0:00:00]} Kf6 {[%emt 0:01:30]} 47. Kc4 {[%emt 0:00:00]} Ke5 {[%emt 0:01:39]} 48. Kb4 {[%emt 0:00:00]} Kd4 {[%emt 0:01:16]} 49. Na2 {[%emt 0:00:00]} Nd3+ {[%emt 0:01:02]} 50. Kb3 {[%emt 0:02:13]} h5 {[%emt 0:02:42]} 51. Kxa3 {[%emt 0:01:06]} Kc4 {[%emt 0:00:31]} 52. Ka4 {[%emt 0:00:11]} h4 {[%emt 0:01:04]} 53. g3 {[%emt 0:00:33]} h3 {[%emt 0:00:22]} 54. Ka3 {[%emt 0:00:49]} g5 {[%emt 0:00:52]} 55. Ka4 {[%emt 0:00:34]} g4 {[%emt 0:00:52]} 56. Ka3 {[%emt 0:00:03]} Ne5 {[%emt 0:00:46]} 57. Nc1 {[%emt 0:00:10]} Nf3 {[%emt 0:00:16]} 58. Ne2 {[%emt 0:00:52]} Nxh2 {[%emt 0:00:18]} 59. Nf4 {[%emt 0:00:45]} Nf1 {[%emt 0:01:03]} 60. Nxh3 {[%emt 0:00:34]} gxh3 {[%emt 0:00:26]} 61. g4 {[%emt 0:00:04]} h2 {[%emt 0:00:32]} 62. g5 {[%emt 0:00:02]} h1=Q {[%emt 0:00:11]} 63. g6 {[%emt 0:00:08]} Qf3+ {[%emt 0:00:35]} 64. Kb2 {[%emt 0:00:02]} Qb3+ {[%emt 0:00:40]} 65. Kc1 {[%emt 0:00:08]} Kd3 {[%emt 0:02:13]} 0-1